[Event "76th Montenegro Championship 2024"]
[Site "Podgorica"]
[Date "2024.02.13"]
[Round "9.1"]
[White "Djukic, Nikola"]
[Black "Nenezic, Danilo"]
[Result "1-0"]
[ECO "B42"]
[WhiteElo "2529"]
[BlackElo "2086"]
[Annotator "TA"]
[PlyCount "63"]
[EventDate "2024.02.06"]
[EventType "swiss"]
[EventCountry "MNE"]
[SourceTitle "playchess.com"]
[Source "ChessBase"]
[SourceQuality "1"]
[TimeControl "40/5400+30:1800+30"]

{[%evp 10,63,23,37,50,42,44,44,31,47,45,44,68,43,78,55,70,66,75,60,66,78,69,73,83,45,88,88,83,66,75,68,68,76,209,183,189,191,197,196,203,202,208,208,204,166,330,329,734,727,943,925,943,933,1712,1455]} 1. e4 {[%emt 0:03:59]} c5 {[%emt 0:00:07]} 2. Nf3 {[%emt 0:00:08]} e6 {[%emt 0:00:05]} 3. d4 {[%emt 0:00:08]} cxd4 {[%emt 0:00:08]} 4. Nxd4 {[%emt 0:00:07]} a6 {[%emt 0:00:08]} 5. Bd3 {[%emt 0:02:28]} Qc7 {[%emt 0:00:18]} 6. Qe2 {[%emt 0:01:22]} Bc5 {[%emt 0:01:13]} 7. Nb3 {[%emt 0:01:20]} Ba7 {[%emt 0:00:06]} 8. Be3 {[%emt 0:00:43]} Bxe3 {[%emt 0:02:22] White is slightly better.} 9. Qxe3 {[%emt 0:00:06]} Nc6 {[%emt 0:00:27]} 10. Nc3 {[%emt 0:00:46]} d6 {[%emt 0:03:16]} 11. O-O-O {[%emt 0:00:17]} Nf6 {[%emt 0:02:13] [#]} 12. g4 $1 {[%emt 0:02:51][%cal Bg2g4,Bg4g5][%mdl 32]} Bd7 {[%emt 0:05:59]} (12... Nxg4 $2 {perishes.} 13. Qg3 $18) (12... b5 13. g5) 13. g5 {[%emt 0:01:27]} Ng8 {[%emt 0:00:08]} 14. Qg3 {[%emt 0:07:04]} O-O-O {[%emt 0:01:35]} 15. Be2 {[%emt 0:00:35]} Be8 {[%emt 0:02:42]} 16. Rd2 {[%emt 0:00:41] White is much more active.} Nge7 {[%emt 0:03:20]} 17. Rhd1 {[%emt 0:14:55][%cal Oh2h4]} Ne5 {[%emt 0:05:04]} 18. f4 {[%emt 0:04:30]} N5c6 {[%emt 0:00:31]} 19. Bg4 {[%emt 0:13:25]} Kb8 $1 {[%emt 0:07:07]} 20. f5 $36 {[%emt 0:00:55][%mdl 2048] White fights for an advantage.} exf5 {[%emt 0:22:41]} 21. exf5 {[%emt 0:00:18][%cal Of5f6] Black must now prevent f6!} Ne5 {[%emt 0:01:11] Loses the game.} (21... h5 $16 {was called for.} 22. Bh3 (22. Rxd6 $2 {loses.} Rxd6 23. Rxd6 hxg4 $19) 22... h4) 22. f6 $18 {[%emt 0:06:11]} gxf6 {[%emt 0:02:34]} 23. gxf6 {[%emt 0:00:12]} N7g6 {[%emt 0:01:32]} 24. Nd5 {[%emt 0:00:18]} Qc6 {[%emt 0:03:20] [#]} 25. Bf5 $1 {[%emt 0:08:08]} Nc4 {[%emt 0:05:02] [#]} 26. Rd4 {[%emt 0:00:47] Bd3 is the strong threat.} Nge5 {[%emt 0:00:32]} 27. Be4 {[%emt 0:07:45]} a5 $2 {[%emt 0:04:37]} (27... Qc8 {keeps fighting.} 28. Kb1 Bb5) 28. Qc3 {[%emt 0:06:22]} a4 {[%emt 0:03:01]} (28... Qb5 29. a4 Qa6) 29. Na5 {[%emt 0:02:26] White is clearly winning.} Qa6 {[%emt 0:21:23]} 30. Nxc4 {[%emt 0:00:48] Hoping for Nb4.} Rc8 {[%emt 0:00:36]} 31. Ndb6 {[%emt 0:01:12]} Bb5 {[%emt 0:00:54]} 32. Nxc8 {[%emt 0:00:40] Weighted Error Value: White=0.07 (flawless) /Black=0.24 (precise) .  Mistake:       	---       	Black=3      Inaccurate:     	White=1     	Black=2      OK:         	White=8     	Black=10     Best:        	White=3     	---        Strong:       	---       	Black=1} 1-0

[Event "76th Montenegro Championship 2024"]
[Site "Podgorica"]
[Date "2024.02.13"]
[Round "9.2"]
[White "Draskovic, Luka"]
[Black "Smirnov, Artem"]
[Result "1/2-1/2"]
[ECO "A28"]
[WhiteElo "2481"]
[BlackElo "2406"]
[Annotator "TA"]
[PlyCount "35"]
[EventDate "2024.02.06"]
[EventType "swiss"]
[EventCountry "MNE"]
[SourceTitle "playchess.com"]
[Source "ChessBase"]
[SourceQuality "1"]
[TimeControl "40/5400+30:1800+30"]

{[%evp 13,35,0,0,0,2,0,0,6,0,7,0,0,0,0,0,0,0,0,1,0,0,0,1,-6]} 1. c4 {[%emt 0:00:17]} e5 {[%emt 0:01:32]} 2. Nc3 {[%emt 0:00:48]} Nf6 {[%emt 0:00:08]} 3. Nf3 {[%emt 0:01:19]} Nc6 {[%emt 0:00:13]} 4. e4 {[%emt 0:00:08]} Bc5 {[%emt 0:02:55]} 5. Nxe5 {[%emt 0:02:38]} Nxe5 {[%emt 0:00:07]} 6. d4 {[%emt 0:00:03]} Bb4 {[%emt 0:00:08]} 7. dxe5 {[%emt 0:00:04]} Nxe4 {[%emt 0:00:05] The position is equal.} 8. Qf3 {[%emt 0:04:16]} Nxc3 {[%emt 0:01:08]} 9. bxc3 {[%emt 0:00:06]} Ba5 {[%emt 0:02:02]} 10. Be2 {[%emt 0:00:52]} d6 {[%emt 0:01:24]} 11. Ba3 {[%emt 0:02:37]} O-O {[%emt 0:05:06][%cal Oc8g4] [#] Threatens to win with ...Bg4!} 12. O-O {[%emt 0:03:26]} Bd7 {[%emt 0:03:48]} 13. exd6 {[%emt 0:05:12]} Bc6 {[%emt 0:02:50]} 14. Qg3 {[%emt 0:01:06][%cal Od6d7] d7! is the strong threat.} cxd6 {[%emt 0:01:08]} 15. Rad1 {[%emt 0:01:19]} Re8 {[%emt 0:01:29]} 16. Bf3 {[%emt 0:03:50]} Bxf3 {[%emt 0:00:47]} 17. Qxf3 {[%emt 0:00:04]} Qc7 {[%emt 0:00:20]} 18. Bxd6 {[%emt 0:01:01] Not much happened in this game.   Weighted Error Value: White=0.00 (flawless) /Black=0.00 (flawless) .  OK:         	White=6     	Black=9} 1/2-1/2

[Event "76th Montenegro Championship 2024"]
[Site "Podgorica"]
[Date "2024.02.13"]
[Round "9.3"]
[White "Podlesnik, Bogdan"]
[Black "Petrov, Nikita"]
[Result "0-1"]
[ECO "B71"]
[WhiteElo "2284"]
[BlackElo "2563"]
[Annotator "TA"]
[PlyCount "72"]
[EventDate "2024.02.06"]
[EventType "swiss"]
[EventCountry "MNE"]
[SourceTitle "playchess.com"]
[Source "ChessBase"]
[SourceQuality "1"]
[TimeControl "40/5400+30:1800+30"]

{[%evp 12,71,16,4,0,0,16,0,0,-14,-22,-25,-17,-12,-1,-12,-4,-15,0,0,-2,-85,-90,-79,-80,-83,-81,-86,-86,-88,-87,-77,-37,-51,-22,-32,0,0,50,0,0,0,0,-66,-62,-167,-157,-272,-272,-272,-264,-257,0,-387,-376,-648,-645,-631,-589,-599,-570,-29999]} 1. e4 {[%emt 0:04:33]} c5 {[%emt 0:00:26]} 2. Nf3 {[%emt 0:01:07]} Nc6 {[%emt 0:00:10]} 3. d4 {[%emt 0:00:08]} cxd4 {[%emt 0:00:08]} 4. Nxd4 {[%emt 0:00:04]} Nf6 {[%emt 0:00:35]} 5. Nc3 {[%emt 0:00:05]} d6 {[%emt 0:00:26]} 6. f4 {[%emt 0:00:17]} g6 {[%emt 0:02:01]} 7. Be2 {[%emt 0:01:49]} Nxd4 {[%emt 0:01:06]} 8. Qxd4 {[%emt 0:00:09]} Bg7 {[%emt 0:00:07]} 9. Be3 {[%emt 0:02:44]} O-O {[%emt 0:02:33] The position is equal.} 10. Qd2 {[%emt 0:01:37] [#]} b5 $1 {[%emt 0:07:39]} 11. a3 {[%emt 0:04:24][%cal Oe2f3]} Bb7 {[%emt 0:02:52]} 12. Bf3 {[%emt 0:00:07][%cal Oe4e5]} Qc8 {[%emt 0:06:29]} 13. O-O {[%emt 0:05:45][%cal Oa1e1]} a5 {[%emt 0:04:35]} 14. Rfe1 {[%emt 0:07:50]} b4 {[%emt 0:16:45]} 15. axb4 {[%emt 0:01:07]} axb4 {[%emt 0:00:05]} 16. Rxa8 {[%emt 0:00:10]} (16. Na4 $1 $11 Nd7 (16... Nxe4 17. Qxb4 Qc6 18. c3 $14) (16... Bxe4 17. Nb6 $14) 17. Qxb4) 16... Bxa8 $17 {[%emt 0:02:14]} 17. Nd5 {[%emt 0:04:04]} Nxd5 {[%emt 0:00:51]} 18. exd5 {[%emt 0:00:07]} Bxb2 {[%emt 0:00:11] ...Bc3 would now be deadly.} 19. Bd4 {[%emt 0:00:07]} Bxd4+ {[%emt 0:01:57]} 20. Qxd4 {[%emt 0:00:10]} Qxc2 {[%emt 0:00:20]} 21. Qxb4 {[%emt 0:00:10]} Qc7 {[%emt 0:00:55]} 22. h4 {[%emt 0:01:13][%cal Of4f5]} Qa7+ {[%emt 0:01:41]} 23. Kh2 {[%emt 0:01:23][%cal Of4f5]} Qf2 {[%emt 0:01:42]} 24. f5 $1 {[%emt 0:00:10]} Qa7 {[%emt 0:14:36]} (24... gxf5 25. Rxe7 h6 26. Rc7 $16 (26. Qxd6 Qxh4+ 27. Kg1 Rc8 $11)) (24... e6 $11) 25. Qf4 {[%emt 0:13:14]} (25. Qd2 $14) 25... e5 $36 {[%emt 0:16:03][%mdl 2048] White is under pressure.} 26. dxe6 {[%emt 0:04:45] White threatens e7 and mate.} Bxf3 {[%emt 0:05:51]} 27. e7 {[%emt 0:03:44]} (27. Qxf3 $11 fxe6 28. Rxe6 Rxf5 29. Qg3) 27... Re8 $15 {[%emt 0:00:25][%cal Of3g2] ...Bxg2! is the strong threat.} 28. f6 {[%emt 0:00:32]} (28. Qxf3 $15 Rxe7 29. Rd1) 28... Qf2 $1 $19 {[%emt 0:00:08][%csl LRe1,LRg2]} 29. Rg1 {[%emt 0:01:08] [#]} (29. Qg3 $17 Qd4 (29... Qxg3+ 30. Kxg3 Bc6 31. Rb1 $11) 30. gxf3) 29... h5 $1 {[%emt 0:00:30]} 30. Qg3 {[%emt 0:05:29] [#]} Qd4 {[%emt 0:02:00][%cal Of3g2] White must now prevent ...Bxg2!} (30... Qxg3+ 31. Kxg3 Ba8 32. Rd1 $11) 31. Qg5 {[%emt 0:02:32][%cal Og1f1]} Bg4 $2 {[%emt 0:07:03]} (31... Qb2 $19 {Strongly threatening ...Kh7.} 32. Rb1 Qf2 (32... Qxb1 33. Qh6)) 32. Qb5 $2 {[%emt 0:01:46][%mdl 8192] [#]} (32. Rf1 $11 Kh7 (32... Qe5+ 33. Qxe5 dxe5 34. Re1 $11) 33. Qb5) 32... Bd7 $1 {[%emt 0:00:13]} (32... Qe5+ 33. Qxe5 dxe5 34. Re1 $14) 33. Qg5 {[%emt 0:01:20]} (33. Qxd7 Qxh4+ 34. Qh3 Qxf6 35. Rd1) 33... Kh7 {[%emt 0:00:28]} ({Stronger than} 33... Qe5+ 34. Qxe5 dxe5 35. Re1 $16) 34. Rf1 {[%emt 0:02:50]} Bc6 {[%emt 0:01:13]} 35. Rf4 {[%emt 0:02:28]} Qb2 {[%emt 0:00:10]} 36. Qa5 {[%emt 0:02:03]} Qxg2# {[%emt 0:04:02] Weighted Error Value: White=0.71/Black=0.25 (precise) .  Loses game:     	White=1     	---        Missed win:     	---       	Black=1      Mistake:       	White=6     	Black=1      Inaccurate:     	White=1     	Black=3      OK:         	White=10    	Black=11     Best:        	White=2     	Black=4      Strong:       	White=1     	Black=2} 0-1

[Event "76th Montenegro Championship 2024"]
[Site "Podgorica"]
[Date "2024.02.13"]
[Round "9.4"]
[White "Kadric, Denis"]
[Black "Milovic, Jovan"]
[Result "1-0"]
[ECO "B01"]
[WhiteElo "2584"]
[BlackElo "2223"]
[Annotator "TA"]
[PlyCount "43"]
[EventDate "2024.02.06"]
[EventType "swiss"]
[EventCountry "MNE"]
[SourceTitle "playchess.com"]
[Source "ChessBase"]
[SourceQuality "1"]
[TimeControl "40/5400+30:1800+30"]

{[%evp 9,43,58,62,56,63,52,64,54,49,47,55,37,58,71,60,75,75,26,35,35,104,94,102,89,102,95,134,125,121,96,102,44,552,561,605,595]} 1. e4 {[%emt 0:00:01]} d5 {[%emt 0:13:46]} 2. exd5 {[%emt 0:00:08]} Nf6 {[%emt 0:00:06]} 3. Nf3 {[%emt 0:01:25]} Bg4 {[%emt 0:00:59]} 4. Bb5+ {[%emt 0:02:55]} Nbd7 {[%emt 0:00:11]} 5. Nc3 {[%emt 0:00:07]} a6 {[%emt 0:04:18]} 6. Be2 {[%emt 0:00:04]} Nb6 {[%emt 0:00:44]} 7. h3 {[%emt 0:06:33]} Bh5 {[%emt 0:03:12]} 8. d4 {[%emt 0:00:21] White is slightly better.} Nfxd5 {[%emt 0:01:10]} 9. Nxd5 {[%emt 0:01:06]} Qxd5 {[%emt 0:02:24]} 10. b3 {[%emt 0:01:00]} O-O-O {[%emt 0:03:04][%cal Oe7e5]} 11. c4 {[%emt 0:10:30]} Qe4 {[%emt 0:03:38]} 12. Be3 {[%emt 0:07:23]} e5 {[%emt 0:01:36]} 13. d5 {[%emt 0:00:01]} (13. Nxe5 $16 Qxg2 14. Bxh5 Qxh1+ 15. Ke2 Qxd1+ 16. Rxd1) 13... Bb4+ $11 {[%emt 0:05:58]} 14. Kf1 {[%emt 0:00:02]} Bxf3 {[%emt 0:06:36]} (14... Nd7 $14) 15. Bxf3 $16 {[%emt 0:00:17]} Qg6 {[%emt 0:00:09]} 16. Bh5 $36 {[%emt 0:02:35][%cal Bf3h5,Bh5f7,Bf7e6][%mdl 2080] White is on the roll.} Qd6 {[%emt 0:01:42]} 17. Bxf7 {[%emt 0:00:20]} Rhf8 {[%emt 0:01:29]} 18. Be6+ {[%emt 0:02:24]} Kb8 {[%emt 0:00:02]} 19. Qc2 {[%emt 0:00:52]} Bc5 {[%emt 0:01:33]} 20. Ke2 {[%emt 0:00:21]} (20. Qe4 $16) 20... Bd4 $2 {[%emt 0:03:55][%mdl 8192] [#]} ({Black should try} 20... Nd7 $14) 21. c5 $1 $18 {[%emt 0:00:47]} Bxe3 {[%emt 0:00:49]} 22. fxe3 {[%emt 0:00:28] Weighted Error Value: White=0.11 (very precise) /Black=0.50.  Loses game:     	---       	Black=1      Mistake:       	White=2     	Black=1      Inaccurate:     	---       	Black=1      OK:         	White=4     	Black=9      Best:        	White=2     	---        Strong:       	White=1     	---} (22. cxd6 Rxf2+ 23. Kd1 (23. Kxe3 Rxc2 24. Rhc1 Rxc1 $11) 23... Rxc2 24. Kxc2 Rxd6 $18) 1-0

[Event "76th Montenegro Championship 2024"]
[Site "Podgorica"]
[Date "2024.02.13"]
[Round "9.5"]
[White "Nikcevic, Nebojsa"]
[Black "Skvortsova, Alena"]
[Result "1/2-1/2"]
[ECO "D45"]
[WhiteElo "2338"]
[BlackElo "2111"]
[Annotator "RC"]
[PlyCount "58"]
[EventDate "2024.02.06"]
[EventType "swiss"]
[EventCountry "MNE"]
[SourceTitle "playchess.com"]
[Source "ChessBase"]
[SourceQuality "1"]
[TimeControl "40/5400+30:1800+30"]

1. d4 {[%emt 0:02:15]} d5 {[%emt 0:05:16]} 2. Nf3 {[%emt 0:00:53]} Nf6 {[%emt 0:00:12]} 3. c4 {[%emt 0:00:27]} c6 {[%emt 0:00:12]} 4. Nc3 {[%emt 0:00:23]} e6 {[%emt 0:00:18]} 5. e3 {[%emt 0:02:46]} Nbd7 {[%emt 0:00:23]} 6. Qc2 {[%emt 0:03:41]} Bd6 {[%emt 0:00:17]} 7. g4 {[%emt 0:00:09]} h6 {[%emt 0:01:01]} 8. Bd2 {[%emt 0:05:07]} dxc4 {[%emt 0:27:44]} 9. Bxc4 {[%emt 0:00:20]} a6 {[%emt 0:07:08]} 10. e4 {[%emt 0:04:27]} b5 {[%emt 0:09:20]} 11. Be2 {[%emt 0:10:19]} e5 {[%emt 0:03:17]} 12. O-O-O {[%emt 0:09:37]} Qc7 {[%emt 0:09:22]} 13. h3 {[%emt 0:20:20]} exd4 {[%emt 0:02:09]} 14. Nxd4 {[%emt 0:00:34]} Nc5 {[%emt 0:02:10]} 15. Bf3 {[%emt 0:08:13]} Be5 {[%emt 0:02:56]} 16. Nce2 {[%emt 0:01:25]} Nfd7 {[%emt 0:14:51]} 17. Bg2 {[%emt 0:02:42]} g5 {[%emt 0:02:13]} 18. h4 {[%emt 0:02:09]} f6 {[%emt 0:00:12]} 19. Kb1 {[%emt 0:11:21]} Na4 {[%emt 0:04:16]} 20. Qxc6 {[%emt 0:09:49]} Qxc6 {[%emt 0:00:33]} 21. Nxc6 {[%emt 0:00:04]} Bxb2 {[%emt 0:00:59]} 22. e5 {[%emt 0:00:17]} Bb7 {[%emt 0:00:09]} 23. hxg5 {[%emt 0:02:52]} Nxe5 {[%emt 0:00:57]} 24. Rhe1 {[%emt 0:01:28]} Bxc6 {[%emt 0:04:33]} 25. Bxc6+ {[%emt 0:00:05]} Nxc6 {[%emt 0:00:03]} 26. Nc3+ {[%emt 0:00:08]} Kf7 {[%emt 0:00:47]} 27. Nxa4 {[%emt 0:00:03]} bxa4 {[%emt 0:00:24]} 28. Kxb2 {[%emt 0:00:17]} hxg5 {[%emt 0:00:27]} 29. Bc3 {[%emt 0:01:33]} Rad8 {[%emt 0:00:29]} 1/2-1/2

[Event "76th Montenegro Championship 2024"]
[Site "Podgorica"]
[Date "2024.02.13"]
[Round "9.6"]
[White "Skvortsov, Andrei"]
[Black "Kalezic, Blazo"]
[Result "0-1"]
[ECO "A25"]
[WhiteElo "2307"]
[BlackElo "2407"]
[Annotator "RC"]
[PlyCount "135"]
[EventDate "2024.02.06"]
[EventType "swiss"]
[EventCountry "MNE"]
[SourceTitle "playchess.com"]
[Source "ChessBase"]
[SourceQuality "1"]
[TimeControl "40/5400+30:1800+30"]

1. c4 {[%emt 0:08:09]} e5 {[%emt 0:01:02]} 2. g3 {[%emt 0:00:20]} Nc6 {[%emt 0:00:24]} 3. Nc3 {[%emt 0:00:30]} f5 {[%emt 0:04:46]} 4. Bg2 {[%emt 0:01:35]} Nf6 {[%emt 0:00:17]} 5. e3 {[%emt 0:00:28]} e4 {[%emt 0:10:48]} 6. d3 {[%emt 0:00:49]} Bb4 {[%emt 0:01:44]} 7. Nge2 {[%emt 0:01:19]} exd3 {[%emt 0:00:28]} 8. Qxd3 {[%emt 0:00:05]} d6 {[%emt 0:02:16]} 9. a3 {[%emt 0:00:24]} Bxc3+ {[%emt 0:03:00]} 10. Qxc3 {[%emt 0:05:06]} O-O {[%emt 0:00:49]} 11. b3 {[%emt 0:03:58]} Ne4 {[%emt 0:09:47]} 12. Qc2 {[%emt 0:00:12]} Qf6 {[%emt 0:03:50]} 13. Bb2 {[%emt 0:00:07]} Ne5 {[%emt 0:01:10]} 14. Nf4 {[%emt 0:10:47]} Rf7 {[%emt 0:14:27]} 15. O-O-O {[%emt 0:06:41]} Bd7 {[%emt 0:05:27]} 16. Nd5 {[%emt 0:14:21]} Qd8 {[%emt 0:01:59]} 17. f3 {[%emt 0:15:44]} Nc5 {[%emt 0:01:12]} 18. f4 {[%emt 0:00:46]} Ng6 {[%emt 0:02:14]} 19. Nc3 {[%emt 0:05:10]} Bc6 {[%emt 0:01:47]} 20. b4 {[%emt 0:00:49]} Nd7 {[%emt 0:00:59]} 21. e4 {[%emt 0:01:30]} Nb6 {[%emt 0:03:45]} 22. exf5 {[%emt 0:07:03]} Ne7 {[%emt 0:01:50]} 23. Ne4 {[%emt 0:00:56]} Ba4 {[%emt 0:01:54]} 24. Qd3 {[%emt 0:01:36]} Bxd1 {[%emt 0:01:08]} 25. Rxd1 {[%emt 0:00:19]} Rxf5 {[%emt 0:02:17]} 26. Ng5 {[%emt 0:04:43]} Rxg5 {[%emt 0:03:32]} 27. fxg5 {[%emt 0:00:21]} Nc6 {[%emt 0:01:25]} 28. h4 {[%emt 0:01:53]} Qe7 {[%emt 0:01:11]} 29. Qb3 {[%emt 0:04:24]} Kh8 {[%emt 0:00:56]} 30. Kb1 {[%emt 0:00:50]} Rf8 {[%emt 0:00:55]} 31. Qc2 {[%emt 0:01:58]} Ne5 {[%emt 0:01:48]} 32. Re1 {[%emt 0:01:31]} Qe6 {[%emt 0:00:34]} 33. c5 {[%emt 0:00:18]} Nbc4 {[%emt 0:00:42]} 34. Bc1 {[%emt 0:00:41]} b5 {[%emt 0:03:23]} 35. Rf1 {[%emt 0:00:54]} Rxf1 {[%emt 0:08:11]} 36. Bxf1 {[%emt 0:00:02]} Qg4 {[%emt 0:03:20]} 37. cxd6 {[%emt 0:00:36]} cxd6 {[%emt 0:00:15]} 38. Qf2 {[%emt 0:00:43]} Qe4+ {[%emt 0:01:19]} 39. Ka1 {[%emt 0:00:06]} Kg8 {[%emt 0:02:23]} 40. Qe2 {[%emt 0:00:00]} Qd4+ {[%emt 0:00:00]} 41. Kb1 {[%emt 0:06:40]} Qc3 {[%emt 0:07:24]} 42. Qd1 {[%emt 0:00:04]} Kf8 {[%emt 0:01:08]} 43. g4 {[%emt 0:07:45]} Ke7 {[%emt 0:02:53]} 44. Ka2 {[%emt 0:03:03]} g6 {[%emt 0:00:46]} 45. h5 {[%emt 0:01:14]} a6 {[%emt 0:00:10]} 46. Be2 {[%emt 0:02:32]} d5 {[%emt 0:02:03]} 47. Qf1 {[%emt 0:02:27]} Kd7 {[%emt 0:00:47]} 48. Qd1 {[%emt 0:04:40]} d4 {[%emt 0:03:08]} 49. Bxc4 {[%emt 0:00:41]} Qxc4+ {[%emt 0:01:09]} 50. Ka1 {[%emt 0:00:04]} Qd3 {[%emt 0:01:51]} 51. Qg1 {[%emt 0:02:11]} Ke6 {[%emt 0:02:55]} 52. hxg6 {[%emt 0:00:18]} hxg6 {[%emt 0:00:11]} 53. Qf2 {[%emt 0:02:39]} Kd5 {[%emt 0:02:59]} 54. Bb2 {[%emt 0:01:43]} Kc4 {[%emt 0:01:41]} 55. Ka2 {[%emt 0:00:14]} Nf3 {[%emt 0:01:37]} 56. Bc1 {[%emt 0:02:01]} Kd5 {[%emt 0:01:52]} 57. Qg2 {[%emt 0:01:21]} Qe4 {[%emt 0:00:31]} 58. Qf2 {[%emt 0:00:19]} Qxg4 {[%emt 0:02:45]} 59. Qc2 {[%emt 0:00:16]} Ne5 {[%emt 0:00:46]} 60. Qc5+ {[%emt 0:00:05]} Ke4 {[%emt 0:00:32]} 61. Bb2 {[%emt 0:00:14]} Qd1 {[%emt 0:01:23]} 62. Qb6 {[%emt 0:01:19]} Qd3 {[%emt 0:01:36]} 63. Qb7+ {[%emt 0:00:41]} Ke3 {[%emt 0:01:23]} 64. Qxa6 {[%emt 0:00:03]} Qc4+ {[%emt 0:00:24]} 65. Ka1 {[%emt 0:00:20]} d3 {[%emt 0:01:10]} 66. Qb6+ {[%emt 0:00:20]} Ke2 {[%emt 0:00:17]} 67. Qg1 {[%emt 0:00:37]} Nf3 {[%emt 0:00:29]} 68. Qg2+ {[%emt 0:00:23]} 0-1

[Event "76th Montenegro Championship 2024"]
[Site "Podgorica"]
[Date "2024.02.13"]
[Round "9.7"]
[White "Vukcevic, Nemanja"]
[Black "Drasko, Milan"]
[Result "1/2-1/2"]
[ECO "C02"]
[WhiteElo "2275"]
[BlackElo "2339"]
[Annotator "TA"]
[PlyCount "35"]
[EventDate "2024.02.06"]
[EventType "swiss"]
[EventCountry "MNE"]
[SourceTitle "playchess.com"]
[Source "ChessBase"]
[SourceQuality "1"]
[TimeControl "40/5400+30:1800+30"]

{[%evp 10,35,0,0,36,26,26,27,18,29,60,54,56,36,35,19,19,24,39,0,0,0,0,-63,-56,-73,-69,-125]} 1. e4 {[%emt 0:00:25]} e6 {[%emt 0:00:13]} 2. d4 {[%emt 0:00:30]} d5 {[%emt 0:00:09]} 3. e5 {[%emt 0:00:07]} c5 {[%emt 0:01:28]} 4. c3 {[%emt 0:00:05]} Nc6 {[%emt 0:01:10]} 5. Nf3 {[%emt 0:00:06]} Nge7 {[%emt 0:08:15]} 6. Na3 {[%emt 0:02:04]} Ng6 {[%emt 0:05:27]} 7. Nc2 {[%emt 0:09:51]} Be7 {[%emt 0:20:07]} 8. Bd3 {[%emt 0:08:17]} c4 {[%emt 0:03:36] White has an edge.} 9. Be2 {[%emt 0:00:34]} f6 {[%emt 0:03:24]} 10. exf6 {[%emt 0:03:07]} Bxf6 {[%emt 0:00:13]} 11. O-O {[%emt 0:02:41]} O-O {[%emt 0:01:18]} 12. g3 {[%emt 0:04:14]} e5 {[%emt 0:09:52]} 13. dxe5 {[%emt 0:03:38]} Ngxe5 {[%emt 0:00:24]} 14. Nfd4 {[%emt 0:09:38]} Bh3 {[%emt 0:02:31]} 15. Re1 {[%emt 0:00:19]} Qd7 {[%emt 0:00:32]} 16. f4 {[%emt 0:52:54]} ({White should play} 16. Be3 $11) 16... Ng4 $15 {[%emt 0:39:51]} 17. Nxc6 bxc6 {[%emt 0:00:30]} 18. Bxc4 {Weighted Error Value: White=0.17 (very precise) /Black=0.07 (flawless) .  Mistake:       	White=2     	---        Inaccurate:     	White=1     	Black=1      OK:         	White=2     	Black=6      Best:        	White=2     	Black=1} ({White should try} 18. Be3 $15) 1/2-1/2